[Event "13th Asrian Memorial 2022"]
[Site "Yerevan"]
[Date "2022.06.11"]
[Round "5.2"]
[White "Tabatabaei, M. Amin"]
[Black "Andriasian, Zaven"]
[Result "1/2-1/2"]
[ECO "D11"]
[WhiteElo "2650"]
[BlackElo "2584"]
[Annotator "TA"]
[PlyCount "221"]
[EventDate "2022.06.07"]
[EventType "swiss"]
[EventCountry "ARM"]
[SourceTitle "playchess.com"]
[Source "ChessBase"]
[SourceQuality "1"]
[TimeControl "40/5400+30:1800+30"]

{[%evp 53,221,0,23,24,61,58,91,75,110,114,158,152,142,53,90,58,79,70,75,77,81,75,62,73,68,58,92,48,52,54,76,45,62,39,35,47,64,43,72,8,25,0,0,0,0,0,72,66,75,94,90,92,91,67,109,64,325,151,120,125,134,135,140,147,131,129,135,106,92,92,239,225,205,135,135,135,135,135,135,135,135,135,135,135,392,0,165,172,172,106,397,83,83,0,382,92,106,106,273,0,106,106,138,0,144,144,144,144,144,80,80,80,80,80,80,80,80,80,80,80,80,80,80,80,80,36,36,36,36,36,36,36,36,36,36,36,36,36,36,36,36,36,36,36,36,36,36,36,36,36,36,0,36,0,36,0,36,36,36,36,36,36,36,36,36,36,36,8,8,8]} 1. d4 {[%emt 0:21:25]} d5 {[%emt 0:00:08]} 2. c4 {[%emt 0:00:06]} c6 {[%emt 0:00:05]} 3. Nf3 {[%emt 0:00:05]} Nf6 {[%emt 0:00:10]} 4. e3 {[%emt 0:00:04]} Bg4 {[%emt 0:00:08]} 5. h3 {[%emt 0:00:14]} Bxf3 {[%emt 0:00:12]} 6. Qxf3 {[%emt 0:00:06]} e6 {[%emt 0:00:06]} 7. Nc3 {[%emt 0:00:34]} Nbd7 {[%emt 0:00:12]} 8. Bd3 {[%emt 0:00:15]} Bb4 {[%emt 0:00:07]} 9. cxd5 {[%emt 0:00:18]} cxd5 {[%emt 0:02:48]} 10. O-O {[%emt 0:00:20]} O-O {[%emt 0:00:50]} 11. Bd2 {[%emt 0:00:29]} Rc8 {[%emt 0:02:04]} 12. Rfc1 {[%emt 0:01:47]} Nb6 {[%emt 0:05:44]} 13. Qd1 {[%emt 0:01:48]} Qd7 {[%emt 0:08:51]} 14. Bb5 {[%emt 0:02:06]} Qe7 {[%emt 0:00:38]} 15. a3 {[%emt 0:00:29]} Bd6 {[%emt 0:00:28]} 16. Bd3 {[%emt 0:00:26]} a6 {[%emt 0:08:19]} 17. e4 {[%emt 0:02:35]} dxe4 {[%emt 0:01:14]} 18. Nxe4 {[%emt 0:00:07]} Nbd5 {[%emt 0:00:25]} 19. Qf3 {[%emt 0:02:38]} h6 {[%emt 0:10:38]} 20. g3 {[%emt 0:08:00]} Rxc1+ {[%emt 0:05:20]} 21. Rxc1 {[%emt 0:00:11]} Rd8 {[%emt 0:01:01]} 22. Kg2 {[%emt 0:02:51]} Rb8 {[%emt 0:10:45]} 23. h4 {[%emt 0:05:17]} Qd8 {[%emt 0:03:58]} 24. Nc5 {[%emt 0:02:40]} a5 {[%emt 0:02:28]} 25. Bb1 {[%emt 0:12:20]} b6 {[%emt 0:02:22]} 26. Nd3 {[%emt 0:01:17]} Rc8 {[%emt 0:06:59]} 27. Re1 {[%emt 0:00:27]} Nd7 {[%emt 0:02:56]} 28. Ne5 {[%emt 0:04:38]} N5f6 {[%emt 0:01:29]} 29. Nc6 {[%emt 0:09:24]} Qf8 {[%emt 0:01:05]} 30. Ba2 {[%emt 0:03:19]} h5 {[%emt 0:03:19]} 31. Bg5 {[%emt 0:00:58]} Re8 {[%emt 0:02:45]} 32. Re2 {[%emt 0:07:40]} Ng4 {[%emt 0:02:21]} 33. d5 {[%emt 0:00:33]} (33. Qd3 $16) 33... e5 {[%emt 0:01:10]} 34. Qf5 {[%emt 0:02:33]} Nc5 {[%emt 0:00:52]} 35. f3 {[%emt 0:04:54]} g6 {[%emt 0:00:34]} 36. Qc2 {[%emt 0:00:42]} Nh6 {[%emt 0:00:10]} 37. b4 {[%emt 0:00:04]} axb4 {[%emt 0:00:17]} 38. axb4 {[%emt 0:00:10]} Nd7 {[%emt 0:00:21]} 39. Bb1 {[%emt 0:06:43]} Nf5 {[%emt 0:02:22]} 40. Qc1 {[%emt 0:08:22]} f6 {[%emt 0:08:11]} 41. Bd2 $1 {[%emt 0:00:39]} Qf7 {[%emt 0:00:36]} 42. Be1 {[%emt 0:00:40]} Ra8 {[%emt 0:03:09]} 43. Ra2 {[%emt 0:01:37]} Rxa2+ {[%emt 0:01:51]} 44. Bxa2 {[%emt 0:00:24]} Qe8 {[%emt 0:01:10]} 45. Bb1 $1 {[%emt 0:01:04]} Kg7 {[%emt 0:08:35]} 46. Bf2 {[%emt 0:00:28]} ({White should try} 46. Bxf5 $16 gxf5 47. Qc2) 46... Ne7 $1 $11 {[%emt 0:08:43]} 47. Qa3 {[%emt 0:03:30]} f5 {[%emt 0:01:02]} (47... Nxd5 $2 48. Qd3 $18) 48. Ba2 {[%emt 0:01:51]} Nf6 {[%emt 0:04:08]} 49. Qa7 {[%emt 0:01:00]} Qd7 {[%emt 0:03:10]} (49... Kf8 $11 {remains equal.}) 50. Bxb6 $16 {[%emt 0:04:57]} Qxa7 {[%emt 0:00:44]} 51. Bxa7 {[%emt 0:00:53]} Nexd5 {[%emt 0:00:59]} 52. b5 {[%emt 0:00:43]} Bc7 {[%emt 0:00:12]} 53. Bb3 {[%emt 0:05:44]} Kh6 {[%emt 0:01:12]} 54. Bc5 {[%emt 0:01:08]} g5 $2 {[%emt 0:02:17][%mdl 8192] [#]} (54... Nd7 $14) 55. Ne7 {[%emt 0:02:00]} (55. Bf8+ $1 $18 {is the precise move to win.} Kh7 56. hxg5) 55... Nxe7 $16 {[%emt 0:01:11]} 56. Bxe7 {[%emt 0:00:16]} Kg6 {[%emt 0:00:08]} 57. hxg5 {[%emt 0:01:57]} Kxg5 {[%emt 0:00:41]} 58. Bf7 {[%emt 0:00:40]} f4 {[%emt 0:00:22]} 59. gxf4+ {[%emt 0:00:47]} exf4 {[%emt 0:00:15]} 60. Bxh5 {[%emt 0:00:20]} Kf5 {[%emt 0:00:12]} 61. Bf7 {[%emt 0:00:11]} Bb6 {[%emt 0:00:24]} (61... Ke5 $16 62. Kh3 Nd5) 62. Ba3 {[%emt 0:02:36]} Nd7 {[%emt 0:01:05]} 63. Bb2 {[%emt 0:00:38]} Nc5 {[%emt 0:01:35]} 64. Bd5 {[%emt 0:01:42]} Ne6 {[%emt 0:00:44]} 65. Be4+ {[%emt 0:01:04]} Kg5 {[%emt 0:00:04]} 66. Be5 {[%emt 0:01:53]} Nd4 {[%emt 0:00:42]} 67. Bc6 {[%emt 0:00:10]} Ne6 {[%emt 0:01:53]} 68. Kf1 {[%emt 0:01:34]} Kh4 $2 {[%emt 0:01:18][%mdl 8192]} (68... Nd4 $16 {was called for.} 69. Ke1 Kf5) 69. Kg2 {[%emt 0:01:24]} (69. Ke2 $142) 69... Kg5 $1 $18 {[%emt 0:00:02]} 70. Bd6 {[%emt 0:00:16]} Nd4 {[%emt 0:00:49]} 71. Kf1 {[%emt 0:00:40]} ({White should play} 71. Bd7 $18) 71... Ne6 $2 {[%emt 0:02:00][%mdl 8192]} (71... Nf5 $16 {might work better.} 72. Be5 Nd4) 72. Be7+ $2 {[%emt 0:00:10]} (72. Ke2 $18 {is more deadly.}) 72... Kf5 $16 {[%emt 0:00:05]} 73. Bd6 $2 {[%emt 0:00:56][%mdl 8192]} (73. Bd7 $16 Ke5 74. Bxe6 Kxe6 75. Bh4) 73... Kg5 $1 $18 {[%emt 0:00:21]} 74. Bb8 $2 {[%emt 0:03:21]} (74. Ke2 $18) 74... Nd4 {[%emt 0:01:03]} 75. Ke1 {[%emt 0:00:23]} Ne6 $2 {[%emt 0:00:31]} (75... Ba5+ $16 76. Kd1 Kf5) 76. Kf1 $2 {[%emt 0:00:38]} (76. Bd6 $18 {and White stays clearly on top.}) 76... Nd4 $16 {[%emt 0:00:06]} 77. Kg2 {[%emt 0:00:11]} Ne6 {[%emt 0:00:33]} 78. Bd6 {[%emt 0:00:04]} Nd4 $1 {[%emt 0:00:19]} 79. Bd7 {[%emt 0:00:05]} Nf5 {[%emt 0:01:12]} 80. Bxf5 {[%emt 0:00:11]} Kxf5 {[%emt 0:00:01]} 81. Bb4 {[%emt 0:00:18]} (81. Bb8 $142) 81... Ke6 {[%emt 0:00:16]} 82. Be1 {[%emt 0:00:04]} Ba7 {[%emt 0:00:14]} 83. Bf2 {[%emt 0:00:22]} Bb8 {[%emt 0:00:03]} 84. Kh3 {[%emt 0:00:26]} Kd5 {[%emt 0:00:12]} 85. Kg4 {[%emt 0:00:06]} Kc4 {[%emt 0:00:19]} 86. b6 {[%emt 0:00:03]} Kb5 {[%emt 0:00:10]} 87. Kf5 {[%emt 0:00:04]} Kc6 {[%emt 0:00:23]} 88. Ke6 {[%emt 0:04:05]} Bd6 {[%emt 0:00:26]} 89. Bh4 {[%emt 0:00:08]} Bc5 {[%emt 0:00:47]} 90. Bd8 {[%emt 0:00:03]} Be3 {[%emt 0:00:40]} 91. Ke5 {[%emt 0:00:09]} Bc1 {[%emt 0:00:55]} 92. Ke4 {[%emt 0:00:26]} Bd2 {[%emt 0:00:50]} 93. Bc7 {[%emt 0:00:15]} Be3 {[%emt 0:00:06]} 94. Kf5 {[%emt 0:00:13]} Kb7 {[%emt 0:01:51]} 95. Ke5 {[%emt 0:00:05]} Bc1 {[%emt 0:00:20]} 96. Ke4 {[%emt 0:01:09]} Be3 $1 {[%emt 0:00:05]} 97. Kd5 {[%emt 0:00:08]} Bc1 {[%emt 0:00:15]} 98. Kc5 {[%emt 0:01:39]} Be3+ {[%emt 0:00:06]} 99. Kb5 {[%emt 0:00:02]} Bf2 {[%emt 0:00:14]} 100. Kc4 {[%emt 0:00:13]} Kc6 {[%emt 0:00:23]} 101. Kd3 {[%emt 0:00:06]} Be3 {[%emt 0:00:25]} 102. Ke4 {[%emt 0:00:03]} Kb7 {[%emt 0:00:05]} 103. Ke5 {[%emt 0:00:21]} Kc6 {[%emt 0:00:39]} 104. Kf5 {[%emt 0:00:02]} Kb7 {[%emt 0:00:09]} 105. Bxf4 {[%emt 0:03:08]} (105. Ke6 {feels hotter.} Bd2 106. Kd7 Be3 107. Ke7) 105... Bxb6 {[%emt 0:00:04]} 106. Ke6 {[%emt 0:00:04]} Kc8 {[%emt 0:00:29]} 107. Bg5 {[%emt 0:00:06]} Bc7 {[%emt 0:00:20]} 108. Bf6 {[%emt 0:00:06]} Bf4 $1 {[%emt 0:00:11]} 109. Be5 {[%emt 0:00:04]} Be3 {[%emt 0:00:06]} 110. f4 {[%emt 0:00:37]} Bxf4 $1 {[%emt 0:00:06]} 111. Bxf4 {[%emt 0:00:01]} 1/2-1/2

[Event "13th Asrian Memorial 2022"]
[Site "Yerevan"]
[Date "2022.06.11"]
[Round "5.3"]
[White "Ter-Sahakyan, Samvel"]
[Black "Derbenev Andrey"]
[Result "1-0"]
[ECO "B27"]
[WhiteElo "2640"]
[BlackElo "2376"]
[Annotator "TA"]
[PlyCount "77"]
[EventDate "2022.06.07"]
[EventType "swiss"]
[EventCountry "ARM"]
[SourceTitle "playchess.com"]
[Source "ChessBase"]
[SourceQuality "1"]
[TimeControl "40/5400+30:1800+30"]

{[%evp 10,77,25,30,33,20,22,3,22,0,0,8,0,-23,-19,-22,-21,-22,-11,-20,0,-1,-8,-12,18,17,42,46,67,36,46,34,87,95,93,84,74,69,105,105,120,116,106,106,155,161,157,120,258,236,922,847,938,938,918,900,877,877,809,505,1150,1133,1414,1183,1137,1076,1128,1110,1452,1409]} 1. e4 {[%emt 0:09:18][%cal Be2e4,Be4e5][%mdl 32]} c5 {[%emt 0:00:08]} 2. Nf3 {[%emt 0:00:18]} g6 {[%emt 0:00:11]} 3. c3 {[%emt 0:06:53]} Bg7 {[%emt 0:00:24]} 4. d4 {[%emt 0:01:39]} cxd4 {[%emt 0:00:06]} 5. cxd4 {[%emt 0:00:04]} d5 {[%emt 0:00:07]} 6. e5 {[%emt 0:00:55]} a6 {[%emt 0:00:05] B27: Sicilian: 2 Nf3, unusual Black 2nd moves.} 7. Nc3 {[%emt 0:09:45]} Nc6 {[%emt 0:00:12]} 8. Qb3 {[%emt 0:02:57]} e6 {[%emt 0:00:11] The position is equal.} 9. Bd3 $5 {[%emt 0:09:59][%mdl 4] A promising side line.} f6 $1 {[%emt 0:00:25][%cal Rf6e5]} 10. O-O {[%emt 0:04:31]} fxe5 {[%emt 0:00:37] [#]} 11. Nxe5 $146 {[%emt 0:00:50]} ({Predecessor:} 11. dxe5 Nge7 12. Bf4 O-O 13. Bg3 Nf5 14. Rfe1 b5 15. Rad1 Nxg3 16. hxg3 Bb7 17. Bb1 {1-0 (35) Palacios Latasa,E (2210)-Calvo Simon,J (2223) Aragon 2018}) 11... Nge7 $1 {[%emt 0:02:04][%cal Bg8e7,Be7c6,Bc6a5][%mdl 32]} 12. Nxc6 {[%emt 0:07:46]} Nxc6 {[%emt 0:03:31]} 13. Ne2 {[%emt 0:00:12]} O-O {[%emt 0:00:11]} (13... Nxd4 $2 14. Nxd4 O-O 15. Be3 $18) 14. Be3 {[%emt 0:00:07]} Na5 {[%emt 0:06:38]} 15. Qb4 {[%emt 0:03:24]} Rf7 {[%emt 0:07:25]} 16. Rac1 {[%emt 0:02:20]} Bf8 {[%emt 0:04:01]} 17. Qd2 {[%emt 0:00:42]} Qb6 {[%emt 0:00:22]} 18. h4 {[%emt 0:13:02][%cal Bh2h4,Bh4h5][%mdl 32]} Bd7 {[%emt 0:16:41]} 19. Nf4 {[%emt 0:05:32]} Bd6 {[%emt 0:09:57]} 20. h5 {[%emt 0:06:45]} Raf8 {[%emt 0:08:06]} (20... gxh5 $14 21. Nxh5 Kh8) 21. Nh3 $1 $16 {[%emt 0:00:11]} ({Much weaker is} 21. g3 $6 g5 22. Ne2 h6 $11) 21... Nc4 {[%emt 0:01:49]} 22. Bxc4 {[%emt 0:01:56]} dxc4 {[%emt 0:01:05]} 23. Bh6 {[%emt 0:02:07]} Rc8 {[%emt 0:12:02]} 24. hxg6 {[%emt 0:01:26]} hxg6 {[%emt 0:00:07]} 25. Qg5 {[%emt 0:00:33]} Kh7 {[%emt 0:00:59] [#]} 26. Qh4 $1 $36 {[%emt 0:00:18][%mdl 2048] Ng5+ is the strong threat. White is on the roll.} Kg8 {[%emt 0:01:02] [#]} ({Black should try} 26... Rh8) 27. Qg4 $1 {[%emt 0:05:51]} Rf6 {[%emt 0:02:04]} 28. Rc3 {[%emt 0:07:24] Black must now prevent Rf3.} Be8 {[%emt 0:06:10] This costs Black the game.} (28... Qxb2 $2 29. Rf3 Qe2 30. Qg5 Qxf3 31. gxf3 $18) (28... Qc6 $16) 29. Ng5 {[%emt 0:01:36][%cal Bh3g5,Bg5e4,Be4g3][%mdl 32] Strongly threatening Rh3.} Bf4 $2 {[%emt 0:02:54]} (29... Qxb2 $2 30. Ne4 Rf5 31. Nxd6 $18) (29... Rc7 30. Rf3 (30. Nxe6 Rh7 $16) 30... Rxf3 31. Nxf3 Qc6) 30. Ne4 $18 {[%emt 0:00:47][%csl LRf4,LRf6] White is clearly winning.} Rf5 {[%emt 0:01:50]} 31. Bxf4 {[%emt 0:00:08][%cal Bh6f4,Bf4e3,Be3d4][%mdl 32]} Qxd4 {[%emt 0:00:04]} 32. Be3 {[%emt 0:00:53]} Qe5 {[%emt 0:00:31]} 33. Ng3 {[%emt 0:00:28]} Rf8 {[%emt 0:00:43]} 34. Bd4 {[%emt 0:00:35]} Qd5 {[%emt 0:00:18]} (34... Rf4 $142 35. Qxg6+ Bxg6 36. Bxe5 Rff8) 35. Re3 {[%emt 0:01:06]} Kf7 {[%emt 0:04:51]} 36. Rf3+ {[%emt 0:01:25]} Ke7 {[%emt 0:00:39]} 37. Rxf8 {[%emt 0:00:44]} Kxf8 {[%emt 0:00:06]} 38. Qf4+ {[%emt 0:00:38]} Ke7 {[%emt 0:00:08]} 39. Rd1 {[%emt 0:01:23] Weighted Error Value: White=0.14 (very precise) /Black=0.23 (precise)} 1-0

[Event "13th Asrian Memorial 2022"]
[Site "Yerevan"]
[Date "2022.06.11"]
[Round "5.4"]
[White "Davtyan, Artur"]
[Black "Petrosyan, Manuel"]
[Result "1/2-1/2"]
[ECO "E35"]
[WhiteElo "2488"]
[BlackElo "2638"]
[Annotator "TA"]
[PlyCount "116"]
[EventDate "2022.06.07"]
[EventType "swiss"]
[EventCountry "ARM"]
[SourceTitle "playchess.com"]
[Source "ChessBase"]
[SourceQuality "1"]
[TimeControl "40/5400+30:1800+30"]

{[%evp 9,116,22,22,0,0,0,0,0,0,-6,34,28,27,26,32,20,30,25,30,15,35,33,28,28,47,27,27,9,16,7,15,10,11,11,12,17,12,14,16,-7,0,0,0,0,0,0,0,0,4,0,0,0,7,0,0,0,0,0,0,0,0,0,0,0,0,0,0,0,0,0,0,0,0,0,0,0,0,0,0,0,0,0,0,0,0,0,0,0,0,0,0,0,0,0,0,0,0,0,0,0,0,0,0,0,0,0,0,0,23]} 1. d4 {[%emt 0:00:08]} Nf6 {[%emt 0:01:13]} 2. c4 {[%emt 0:00:21]} e6 {[%emt 0:00:05]} 3. Nc3 {[%emt 0:00:10]} Bb4 {[%emt 0:00:21]} 4. Qc2 {[%emt 0:00:10]} d5 {[%emt 0:01:08]} 5. cxd5 {[%emt 0:00:16]} exd5 {[%emt 0:00:12]} 6. Bf4 {[%emt 0:00:21] E35: Nimzo-Indian: Classical: 4...d5 5 cxd5 exd5.} c5 {[%emt 0:07:44]} 7. dxc5 {[%emt 0:01:06]} Nc6 {[%emt 0:02:58] [#] White must now prevent ...Qa5.} 8. e3 {[%emt 0:04:20]} O-O {[%emt 0:04:56]} 9. Nf3 {[%emt 0:00:37]} Qa5 {[%emt 0:03:53]} 10. Bd3 {[%emt 0:08:15]} Qxc5 {[%emt 0:04:10]} 11. O-O {[%emt 0:02:27]} Bxc3 {[%emt 0:05:00]} 12. bxc3 {[%emt 0:09:43] [#]} h6 $146 {[%emt 0:03:11]} ({Predecessor:} 12... Bg4 13. Nd4 Nxd4 14. cxd4 Qxc2 15. Bxc2 Rfc8 16. Rfc1 Rc6 17. Ba4 Rxc1+ 18. Rxc1 Rc8 19. Rxc8+ Bxc8 {½-½ (47) Ding,L (2801)-Anand,V (2757) Kolkata 2019}) 13. h3 {[%emt 0:06:51]} Re8 {[%emt 0:05:02]} 14. Rfc1 {[%emt 0:02:47]} Na5 {[%emt 0:04:33]} 15. Be5 {[%emt 0:05:00]} Nd7 {[%emt 0:00:46]} 16. Bd4 {[%emt 0:05:05]} Qc6 {[%emt 0:02:44]} 17. Re1 {[%emt 0:06:48] [#] And now e4 would win.} Nf6 {[%emt 0:06:38] Inhibits e4.} 18. Nd2 {[%emt 0:05:55]} Ne4 {[%emt 0:02:49] The position is equal.} 19. Nb3 {[%emt 0:00:35]} Nc4 {[%emt 0:01:55]} 20. f3 {[%emt 0:00:05]} Ng5 {[%emt 0:08:27]} 21. h4 {[%emt 0:01:29]} Ne6 {[%emt 0:00:15]} 22. e4 {[%emt 0:00:21]} dxe4 {[%emt 0:03:25]} 23. Bxe4 {[%emt 0:12:07] This bishop pair is nice.} Qc7 {[%emt 0:00:08]} ({Don't play} 23... Nxd4 24. Bxc6 (24. cxd4 Qa4 $16) 24... Rxe1+ 25. Rxe1 $14) 24. Bd5 {[%emt 0:14:38][%cal Ob3c5]} Nb6 {[%emt 0:04:16]} 25. Bxb6 {[%emt 0:06:54]} Qxb6+ {[%emt 0:01:01]} 26. Qf2 {[%emt 0:00:01]} Qxf2+ {[%emt 0:06:42]} 27. Kxf2 {[%emt 0:00:01]} Rb8 {[%emt 0:00:16]} 28. Nd4 {[%emt 0:03:00]} Bd7 {[%emt 0:01:27]} 29. Nxe6 {[%emt 0:01:03]} Bxe6 {[%emt 0:02:29]} 30. Bxe6 {[%emt 0:00:02]} fxe6 $11 {[%emt 0:01:25][%mdl 4096] Endgame KRR-KRR} 31. Rad1 {[%emt 0:00:18]} Re7 {[%emt 0:00:05]} 32. Rd6 {[%emt 0:00:51]} Kf7 {[%emt 0:00:06]} 33. Ke3 {[%emt 0:02:23]} Rc8 {[%emt 0:00:49]} 34. Kd2 {[%emt 0:02:24]} Rc4 {[%emt 0:00:10]} 35. Rd4 {[%emt 0:00:15]} Rec7 {[%emt 0:00:58]} 36. Rxc4 {[%emt 0:00:48]} Rxc4 {[%emt 0:00:02] KR-KR} 37. Rb1 {[%emt 0:00:53]} b6 {[%emt 0:00:25]} 38. Rb4 Rc5 {[%emt 0:00:53]} 39. a4 {[%emt 0:00:39]} Kf6 {[%emt 0:02:10]} 40. Kd3 {[%emt 0:00:00]} g5 {[%emt 0:00:00]} 41. hxg5+ {[%emt 0:03:58]} Rxg5 {[%emt 0:03:55]} 42. g4 {[%emt 0:00:12]} h5 {[%emt 0:01:04]} 43. gxh5 {[%emt 0:00:38]} Rxh5 {[%emt 0:00:15]} 44. Rc4 {[%emt 0:03:17]} Ra5 {[%emt 0:01:27]} 45. Kc2 {[%emt 0:01:21]} Ke5 {[%emt 0:01:26]} 46. Kb3 {[%emt 0:00:44]} Kd6 {[%emt 0:00:17]} 47. Rd4+ {[%emt 0:00:10]} Rd5 {[%emt 0:02:15]} 48. Rh4 {[%emt 0:15:12]} Rf5 {[%emt 0:00:50]} 49. Rh7 {[%emt 0:00:25]} a6 {[%emt 0:02:57]} 50. Ra7 {[%emt 0:00:23]} Kc6 {[%emt 0:00:58]} 51. Re7 {[%emt 0:00:09]} Rf6 {[%emt 0:00:17]} 52. Kc4 {[%emt 0:00:58]} a5 {[%emt 0:02:16]} 53. Re8 {[%emt 0:05:29]} Kc7 {[%emt 0:07:14]} 54. Re7+ {[%emt 0:00:59]} Kd6 {[%emt 0:00:14]} 55. Rb7 {[%emt 0:00:05]} Kc6 {[%emt 0:00:08]} 56. Re7 {[%emt 0:00:02]} Rf4+ {[%emt 0:01:01]} 57. Kb3 {[%emt 0:00:09]} Kd5 {[%emt 0:01:08]} 58. Rb7 {[%emt 0:00:23]} Ke5 {[%emt 0:01:03] Weighted Error Value: White=0.03 (flawless) /Black=0.02 (flawless)} ({Much less strong is} 58... Rxf3 59. Rxb6 Rf7 60. Rb5+ Ke4 61. Rxa5 $14) 1/2-1/2

[Event "13th Asrian Memorial 2022"]
[Site "Yerevan"]
[Date "2022.06.11"]
[Round "5.5"]
[White "Melkumyan, Hrant"]
[Black "Davtyan, Arsen"]
[Result "0-1"]
[ECO "B14"]
[WhiteElo "2655"]
[BlackElo "2308"]
[Annotator "TA"]
[PlyCount "84"]
[EventDate "2022.06.07"]
[EventType "swiss"]
[EventCountry "ARM"]
[SourceTitle "playchess.com"]
[Source "ChessBase"]
[SourceQuality "1"]
[TimeControl "40/5400+30:1800+30"]

{[%evp 20,84,20,20,23,8,26,0,0,0,45,0,0,-6,13,1,48,0,61,-16,0,0,0,0,0,-166,-92,-87,-98,-99,-109,-95,-94,-110,-96,-89,-93,-90,-86,-87,-79,-93,-35,-192,-193,-192,-189,-190,-185,-216,-224,-318,-327,-316,-310,-322,-277,-320,0,-699,-324,-898,-857,-29988,-29989,-29989,-29990]} 1. d4 {[%emt 0:03:32]} Nf6 {[%emt 0:00:12]} 2. c4 {[%emt 0:00:42]} e6 {[%emt 0:00:07]} 3. Nc3 {[%emt 0:00:21]} d5 {[%emt 0:00:13]} 4. Nf3 {[%emt 0:00:26]} c5 {[%emt 0:00:10]} 5. e3 {[%emt 0:00:18]} cxd4 {[%emt 0:00:13]} 6. exd4 {[%emt 0:00:09]} Bb4 {[%emt 0:00:06]} 7. cxd5 {[%emt 0:01:03]} Nxd5 {[%emt 0:00:09]} 8. Bd2 {[%emt 0:00:07]} Nc6 {[%emt 0:00:12]} 9. Bd3 {[%emt 0:00:13]} O-O $1 {[%emt 0:00:32] The main line 9...0-0 scores better than 9...Be7.} 10. O-O {[%emt 0:00:10]} Nf6 {[%emt 0:00:12]} 11. Bg5 {[%emt 0:00:45]} h6 {[%emt 0:00:39] B14: Caro-Kann: Panov-Botvinnik Attack with 5...e6 and 5...g6.} 12. Bf4 {[%emt 0:01:16]} b6 {[%emt 0:05:05] [#]} 13. Qd2 $146 {[%emt 0:03:59][%cal Of4h6] Threatens to win with Bxh6!} ({Predecessor:} 13. Re1 Bb7 14. a3 Bd6 15. Be5 Rc8 16. Qe2 Nd5 17. Nxd5 Bxe5 18. dxe5 Qxd5 19. Be4 Qc5 20. h3 Rfd8 21. Rad1 Qe7 22. Rxd8+ Rxd8 23. Qe3 Qd7 {½-½ (22) Junge,W (2364)-Molzahn,N (2300) ICCF email 2017}) 13... Ne7 {[%emt 0:02:11] The position is equal.} (13... Nxd4 $2 14. Nxd4 Bb7 15. Rad1 $1 $18) 14. Ne5 {[%emt 0:15:58][%cal Of4h6]} Bb7 {[%emt 0:06:37][%cal Of6e4] [#]} 15. Rfe1 {[%emt 0:01:51]} (15. Bxh6 $1 $14 gxh6 16. Qxh6) 15... Nf5 $11 {[%emt 0:08:52]} 16. a3 {[%emt 0:01:05]} Be7 {[%emt 0:03:18]} 17. Rad1 {[%emt 0:13:29][%cal Od4d5] Hoping for d5!} Nh4 {[%emt 0:26:27]} (17... Nxd4 18. Bxh6 $1 Nf5 19. Bg5 $14) (17... Qxd4 18. g4 g5 19. gxf5 $16) (17... Nd5 $11 {is more appropriate.}) 18. f3 {[%emt 0:08:21]} (18. Bxh6 $1 $14 Nd5 19. Be4 $1) 18... Rc8 {[%emt 0:18:22] [#]} (18... Nd5 $11) 19. Kh1 {[%emt 0:06:17]} (19. Bxh6 $1 $14 Nd7 (19... Nd5 20. Bf4) 20. Nxd7 Qxd7 21. d5 $1) 19... Nd5 {[%emt 0:05:47]} 20. Bxh6 {[%emt 0:20:21]} gxh6 {[%emt 0:02:30]} 21. Qxh6 {[%emt 0:00:06][%csl Gd3][%cal Rh6h7]} Nf5 {[%emt 0:01:41]} 22. Qh3 {[%emt 0:00:08]} (22. Bxf5 $11 exf5 23. Ng6 fxg6 24. Qxg6+ Kh8 25. Qh6+ Kg8 26. Qg6+ Kh8 27. Qh6+ Kg8 28. Qg6+) 22... Bf6 {[%emt 0:05:40]} (22... Nxc3 23. bxc3 Rxc3 24. d5 Rxd3 25. Rxd3 Bxd5 26. Qg4+ Ng7 27. Nc6 Bxc6 28. Rxd8 Rxd8 29. Qc4 $17) ({Black should play} 22... Bg5 $19 {aiming for ...Nf4.} 23. Nxd5 Bxd5) 23. Bxf5 $17 {[%emt 0:15:05]} exf5 {[%emt 0:00:07]} 24. Qxf5 {[%emt 0:00:05]} Nxc3 {[%emt 0:02:03]} 25. bxc3 {[%emt 0:00:05]} Bg7 {[%emt 0:00:23] A strong pair of Bishops.} (25... Rxc3 $6 26. Nd7 Rc6 27. d5 $11) 26. c4 {[%emt 0:00:02]} Qd6 {[%emt 0:01:05]} 27. d5 {[%emt 0:00:19]} Rce8 {[%emt 0:04:03]} (27... Qxa3 $6 28. Re4 Rc7 29. Rh4 $11) 28. f4 {[%emt 0:00:02]} Bc8 {[%emt 0:01:07]} ({Much weaker is} 28... Qxa3 $6 29. d6 Qa2 30. Qg4 $11) 29. Qd3 {[%emt 0:00:32]} Re7 {[%emt 0:01:10]} ({Don't do} 29... Bxe5 30. fxe5 Qg6 31. Qd4 $16) 30. Re3 {[%emt 0:04:01]} Rfe8 {[%emt 0:02:10]} (30... Bxe5 $17 31. Rxe5 Rxe5 32. Qg3+ Qg6 33. Qxg6+ fxg6 34. fxe5 Bg4) 31. Rg3 $2 {[%emt 0:00:15] [#]} (31. Rde1 $1 $15) 31... f6 $1 $19 {[%emt 0:01:21]} 32. Qg6 {[%emt 0:00:23] [#]} Bf5 $1 {[%emt 0:00:43][%mdl 512] Really sharp!} 33. Qxf5 {[%emt 0:01:09]} fxe5 $40 {[%emt 0:00:04][%mdl 128] Black attacks with force.} 34. Rg6 {[%emt 0:00:21]} exf4 {[%emt 0:00:32] ( -> ...Re1+)} 35. Rg1 {[%emt 0:01:51]} (35. h4 $142 Qc5 36. Kh2) 35... Qe5 {[%emt 0:02:09]} ({Inferior is} 35... Qxa3 36. d6 Rf7 37. Rxg7+ Rxg7 38. d7 $11) 36. Qg4 {[%emt 0:00:05]} Qd4 {[%emt 0:00:30] ...Re1 is the strong threat.} 37. Qh4 {[%emt 0:02:11] Prevents Re1.} Kf7 {[%emt 0:01:15]} 38. Rc6 {[%emt 0:01:29]} Kg8 $2 {[%emt 0:00:48]} (38... Re4 $19 {And now ...Kg8 would win.} 39. g3 Kg8 40. gxf4 Rxf4) 39. h3 $2 {[%emt 0:00:11][%mdl 8192]} (39. Rg6 $11 Qxc4 40. d6) 39... Re4 {[%emt 0:00:32]} (39... f3 $142 40. Qxd4 Bxd4 41. gxf3+ Bxg1 42. Kxg1 Re2 43. Rg6+ Kf7) 40. Rg6 $2 {[%emt 0:00:00]} (40. Rf1) 40... f3 {[%emt 0:00:00][%cal Bf4f3,Bf3f2][%mdl 32]} 41. Qg3 {[%emt 0:06:33]} f2 {[%emt 0:01:40][%csl Gd4][%cal Rf2g1]} 42. Rxg7+ {[%emt 0:02:35]} Kh8 {[%emt 0:02:05] Weighted Error Value: White=0.85/Black=0.33} 0-1